bitfinex-derivatives/quotes_ETHF0:USTF0_20250112
["timestamp","ask_amount","ask_price","bid_price","bid_amount"]
[1736691354822,0.21366,3278.0,3277.8,0.21367]
[1736691355630,3.654,3278.3,3277.3,3.2078]
[1736691355830,0.53412,3278.2,3277.3,3.2078]
[1736691356031,0.21367,3277.8,3277.6,0.21368]
[1736691356422,0.22380776,3278.0,3277.6,0.21368]
[1736691356622,0.21367,3277.9,3277.7,0.21368]
[1736691357129,0.21367,3277.9,3277.3,3.2078]
[1736691357329,0.21366,3277.9,3277.6,0.21368]
[1736691358538,0.21367,3277.8,3277.6,0.21368]
[1736691358737,0.21367,3277.9,3277.6,0.21368]
[1736691359433,0.21367,3277.9,3277.7,0.4342]
[1736691359633,0.21367,3277.8,3277.7,0.4342]
[1736691359834,0.21367,3277.9,3277.7,0.4342]
[1736691360529,0.22380776,3278.0,3277.7,0.4342]
[1736691360730,0.21367,3277.8,3277.7,0.4342]
[1736691361136,0.21368,3277.7,3277.5,0.21369]
[1736691362738,0.4732,3277.9,3277.4,0.4495]
[1736691363046,0.21368,3277.8,3277.6,0.21368]
[1736691364028,0.68687,3277.9,3277.7,0.21367]
[1736691364334,0.21367,3277.9,3277.7,0.21367]
[1736691365840,0.22380776,3278.0,3277.4,0.4495]
[1736691366032,0.22380776,3278.0,3277.9,0.21366]
[1736691366232,0.43746776,3278.0,3277.9,0.21366]
[1736691366833,0.43746776,3278.0,3277.8,0.21367]
[1736691367037,0.43746776,3278.0,3277.9,0.21366]
[1736691367537,0.65984,3278.3,3278.1,0.21365]
[1736691367744,0.4606,3278.6,3278.0,0.4805]
[1736691368042,0.9277,3278.6,3278.0,0.4805]
[1736691368244,0.9277,3278.6,3278.2,0.21364]
[1736691368542,0.21364,3278.3,3278.2,0.21364]
[1736691368739,3.2078,3278.7,3278.0,0.4805]
[1736691368935,0.21361,3278.8,3278.3,3.2078]
[1736691369142,0.2136,3278.9,3278.7,0.21361]
[1736691369641,0.21361,3278.8,3278.4,0.9067]
[1736691369842,0.4671,3279.2,3278.6,0.21362]
[1736691370044,0.21361,3278.7,3278.6,0.21362]
[1736691370240,0.21361,3278.8,3278.7,0.21361]
[1736691370446,0.4671,3279.2,3278.4,0.9067]
[1736691370447,0.21359,3279.1,3278.9,0.2136]
[1736691370650,0.2136,3279.0,3278.9,0.2136]
[1736691370941,0.4671,3279.2,3278.7,3.2078]
[1736691371140,0.2136,3278.9,3278.8,0.2136]
[1736691372349,0.4671,3279.2,3278.7,3.2078]
[1736691372548,0.2136,3278.9,3278.8,0.2136]
[1736691372845,0.22956402,3279.0,3278.7,3.2078]
[1736691373047,0.22956402,3279.0,3278.9,0.2136]
[1736691373450,0.4671,3279.2,3279.1,0.21359]
[1736691375548,0.21357,3279.4,3279.2,0.21358]
[1736691375749,0.21357,3279.3,3279.2,0.21358]
[1736691375949,0.21357,3279.4,3279.3,0.21357]
[1736691376151,0.4757,3279.6,3279.4,0.21357]
[1736691376445,0.4757,3279.6,3279.3,3.2078]
[1736691376649,0.4757,3279.6,3279.5,0.21356]
[1736691376845,0.4757,3279.6,3279.4,0.45]
[1736691377045,0.4757,3279.6,3279.5,0.21356]
[1736691377355,0.4757,3279.6,3279.4,0.45]
[1736691377552,0.4757,3279.6,3279.5,0.21356]
[1736691377752,0.4757,3279.6,3279.4,0.66356]
[1736691378349,0.4757,3279.6,3279.4,0.45]
[1736691378749,0.68926,3279.6,3279.4,0.45]
[1736691378949,0.4757,3279.6,3279.4,0.66357]
[1736691379350,0.68926,3279.6,3279.4,0.66357]
[1736691381157,0.21356,3279.5,3279.4,0.45]
[1736691381456,0.21359,3279.1,3278.9,3.2078]
[1736691381647,0.4357,3279.4,3278.9,3.42139]
[1736691381848,0.21359,3279.1,3278.9,3.42139]
[1736691382556,0.21359,3279.0,3278.9,3.2078]
[1736691382756,0.68689,3279.0,3278.9,3.2078]
[1736691384058,0.4733,3279.0,3278.5,3.2078]
[1736691384259,0.21362,3278.6,3278.5,3.2078]
[1736691384554,0.21362,3278.7,3278.5,3.2078]
[1736691384756,0.4788,3278.9,3278.5,3.2078]
[1736691385057,0.21362,3278.7,3278.5,3.42143]
[1736691385261,0.4788,3278.9,3278.5,3.2078]
[1736691385457,0.6924,3278.9,3278.7,0.21361]
[1736691385657,0.6924,3278.9,3278.5,3.2078]
[1736691385857,0.21361,3278.8,3278.6,0.21362]
[1736691386250,0.22562485,3279.0,3278.5,3.2078]
[1736691386857,0.2136,3278.9,3278.7,0.21361]
[1736691387056,0.22562485,3279.0,3278.6,40.8]
[1736691387253,0.21362,3278.7,3278.5,3.42142]
[1736691388260,0.21361,3278.8,3278.6,0.21361]
[1736691389262,0.21362,3278.7,3278.5,3.42142]
[1736691389462,0.21361,3278.8,3278.6,0.21362]
[1736691389667,0.2136,3278.9,3278.7,0.21361]
[1736691389861,0.43922485,3279.0,3278.8,0.2136]
[1736691390063,0.43922485,3279.0,3278.9,0.4363]
[1736691391459,0.22562485,3279.0,3278.9,3.8577]
[1736691392859,0.22562485,3279.0,3278.9,4.2983]
[1736691393361,0.21356,3279.6,3279.4,0.21356]
[1736691393760,3.74161,3280.1,3279.3,3.2078]
[1736691394065,0.21356,3279.5,3279.4,0.21357]
[1736691394267,0.21356,3279.5,3279.3,3.2078]
[1736691394467,0.21357,3279.4,3279.3,3.2078]
[1736691394663,0.68127,3279.4,3279.3,3.2078]
[1736691397567,0.4677,3279.4,3279.3,3.42137]
[1736691397768,0.68127,3279.4,3279.3,3.42137]
[1736691399161,0.9224,3279.7,3279.3,3.2078]
[1736691399362,0.21356,3279.6,3279.4,0.21356]
[1736691399563,0.21356,3279.5,3279.4,0.69067]
[1736691399761,0.21355,3279.6,3279.5,0.21356]
[1736691400467,0.65525,3279.7,3279.6,0.21355]
[1736691401164,0.4417,3279.7,3279.6,0.21355]
[1736691401563,0.21354,3279.8,3279.7,0.21354]
[1736691401764,0.22635063,3279.8,3279.6,0.454]
[1736691401965,0.22635063,3279.8,3279.7,0.21355]
[1736691402160,0.22635063,3279.8,3279.7,3.42135]
[1736691403466,0.4626,3280.4,3280.3,0.21351]
[1736691403673,0.4626,3280.4,3280.1,3.2078]
[1736691403969,0.4561,3280.5,3280.4,0.2135]
[1736691404266,0.21349,3280.7,3280.5,0.2135]
[1736691404465,1.3557,3280.9,3280.4,0.2135]
[1736691404665,0.21349,3280.6,3280.4,0.2135]
[1736691405067,1.3557,3280.9,3280.2,1.3628]
[1736691405268,0.2135,3280.5,3280.3,0.21351]
[1736691405468,0.2135,3280.4,3280.2,1.57631]
[1736691405667,0.2135,3280.5,3280.3,0.21351]
[1736691405867,0.21351,3280.4,3280.2,1.57631]
[1736691406073,0.21351,3280.3,3280.2,1.3628]
[1736691406368,0.53376,3280.4,3279.5,3.2078]
[1736691406566,0.21355,3279.7,3279.5,3.42136]
[1736691406765,0.21355,3279.7,3279.5,3.2078]
[1736691406972,0.21355,3279.7,3279.5,3.42136]
[1736691407167,0.21355,3279.6,3279.5,3.2078]
[1736691407573,3.2078,3279.8,3279.3,0.4652]
[1736691407769,0.21357,3279.4,3279.3,0.4652]
[1736691408975,0.21357,3279.4,3279.3,0.67877]
[1736691409472,0.21356,3279.5,3279.3,0.67877]
[1736691409675,0.65266,3279.6,3279.4,0.21356]
[1736691410282,0.21356,3279.5,3279.3,0.4652]
[1736691410576,0.21356,3279.5,3279.3,0.67877]
[1736691411279,0.21357,3279.4,3279.3,0.4652]
[1736691411580,0.2256706,3279.6,3279.3,0.4652]
[1736691411879,0.2256706,3279.6,3279.5,0.21356]
[1736691412780,3.2078,3281.2,3279.5,8.2078]
[1736691412974,10.60948272,3281.3,3280.7,3.2078]
[1736691413171,10.60948272,3281.3,3281.2,3.2078]
[1736691413368,10.60948272,3281.3,3281.2,3.42125]
[1736691414177,0.23420399,3281.5,3281.2,3.2078]
[1736691414382,3.2078,3282.0,3281.9,0.2134]
[1736691414682,3.2078,3282.0,3281.7,0.21341]
[1736691414883,3.2078,3282.0,3281.3,0.21344]
[1736691415078,3.2078,3282.0,3281.2,3.2078]
[1736691415279,3.2078,3282.0,3281.9,0.2134]
[1736691415780,3.65057221,3282.0,3281.7,0.21341]
[1736691415980,3.43717221,3282.0,3281.2,3.2078]
[1736691416180,0.21341,3281.9,3281.6,0.21342]
[1736691416482,3.65057221,3282.0,3281.2,3.2078]
[1736691416681,0.21341,3281.9,3281.2,3.2078]
[1736691416881,0.21341,3281.9,3281.5,0.21343]
[1736691417380,3.43717221,3282.0,3281.2,3.2078]
[1736691417574,3.43717221,3282.0,3281.2,4.4168]
[1736691417972,0.21343,3281.5,3281.2,4.63025]
[1736691418186,3.43717221,3282.0,3281.2,4.4168]
[1736691418378,0.21343,3281.5,3281.2,4.63025]
[1736691418682,3.43717221,3282.0,3281.2,4.4168]
[1736691418878,0.21344,3281.4,3281.2,4.4168]
[1736691419081,0.21343,3281.5,3281.2,4.63025]
[1736691419679,0.21344,3281.3,3281.2,3.2078]
[1736691419888,0.21342,3281.7,3280.9,1.42247]
[1736691420080,0.21345,3281.3,3280.9,0.21347]
[1736691420275,0.21345,3281.3,3281.0,0.21346]
[1736691420884,0.4362,3281.7,3281.1,0.21345]
[1736691421084,0.4362,3281.7,3281.1,3.2078]
[1736691421284,0.21343,3281.6,3281.1,3.2078]
[1736691421482,0.4362,3281.7,3281.2,0.21344]
[1736691421681,0.21345,3281.3,3281.1,3.2078]
[1736691422180,0.21344,3281.4,3281.1,3.42125]
[1736691422484,0.21343,3281.5,3281.2,0.21345]
[1736691423586,0.21343,3281.6,3281.3,0.21344]
[1736691423786,0.21344,3281.4,3281.1,3.42125]
[1736691423985,3.43717221,3282.0,3281.1,3.2078]
[1736691424184,0.21341,3281.8,3281.1,3.2078]
[1736691424487,0.21341,3281.8,3281.5,0.21343]
[1736691424984,3.43717221,3282.0,3281.8,0.21341]
[1736691425291,3.43717221,3282.0,3281.1,3.2078]
[1736691425478,3.65057221,3282.0,3281.7,0.21341]
[1736691425873,3.65057221,3282.0,3281.8,0.21341]
[1736691426387,3.43717221,3282.0,3281.8,0.21341]
[1736691426686,0.2134,3281.9,3281.6,1.42242]
[1736691426881,3.43717221,3282.0,3281.6,1.209]
[1736691427088,3.65057221,3282.0,3281.7,0.21341]
[1736691427583,3.65057221,3282.0,3281.6,1.209]
[1736691427584,0.2134,3281.9,3281.6,1.209]
[1736691427795,0.2134,3281.9,3281.6,1.42242]
[1736691428086,3.43717221,3282.0,3281.5,3.2078]
[1736691428288,3.43717221,3282.0,3281.5,4.4168]
[1736691428475,3.65057221,3282.0,3281.6,0.21342]
[1736691428677,0.21341,3281.9,3281.7,0.21341]
[1736691428888,0.21341,3281.8,3281.6,0.21342]
[1736691429081,3.43717221,3282.0,3281.5,4.4168]
[1736691429277,0.2134,3281.9,3281.5,4.4168]
[1736691429589,0.4355,3281.9,3281.5,3.2078]
[1736691429786,0.21345,3281.2,3281.1,3.2078]
[1736691432486,3.43658548,3281.6,3280.6,3.2078]
[1736691432683,0.2135,3280.5,3280.3,0.2135]
[1736691432888,0.2135,3280.5,3280.2,40.8]
[1736691433090,0.9199,3281.0,3280.2,40.8]
[1736691433292,0.21348,3280.8,3280.6,0.21349]
[1736691433488,0.21348,3280.7,3280.2,40.8]
[1736691433789,0.21349,3280.6,3280.4,0.2135]
[1736691433988,0.21349,3280.7,3280.3,0.21351]
[1736691434295,0.9199,3281.0,3280.2,42.009]
[1736691434587,0.21348,3280.8,3280.6,0.21349]
[1736691435187,0.9199,3281.0,3280.2,42.009]
[1736691435590,0.21349,3280.7,3280.5,0.21349]
[1736691435790,0.21349,3280.6,3280.4,0.2135]
[1736691436290,0.9199,3281.0,3280.3,0.2135]
[1736691436291,0.2135,3280.5,3280.3,0.2135]
[1736691437191,0.21351,3280.3,3280.2,42.009]
[1736691437392,0.2135,3280.5,3280.2,41.01351]
[1736691437593,0.21348,3280.8,3280.2,41.01351]
[1736691437785,0.2135,3280.5,3280.2,41.01351]
[1736691438287,0.9199,3281.0,3280.2,40.8]
[1736691438592,0.53368,3280.9,3280.2,40.8]
[1736691438788,0.21351,3280.4,3280.2,40.8]
[1736691438984,0.21351,3280.3,3280.2,40.8]
[1736691439487,0.21351,3280.2,3280.1,3.2078]
[1736691439687,0.64811,3280.2,3280.1,3.2078]
[1736691440594,0.21354,3279.8,3279.7,0.01139]
[1736691442491,0.4419,3280.1,3279.7,0.01139]
[1736691442800,0.21354,3279.8,3279.7,0.01139]
[1736691444797,0.44650232,3279.8,3279.7,0.01139]
[1736691445595,0.21354,3279.8,3279.7,0.01139]
[1736691447391,0.44148564,3279.8,3279.7,0.01139]
[1736691448694,0.22794564,3279.8,3279.6,3.2078]
[1736691448896,0.44148564,3279.8,3279.6,3.42135]
[1736691449095,0.22794564,3279.8,3279.6,3.42135]
[1736691449499,0.21355,3279.7,3279.6,3.42135]
[1736691449803,0.21355,3279.7,3279.6,3.2078]
[1736691452999,0.22897525,3279.8,3279.7,0.21355]
[1736691453302,0.00102961,3279.8,3279.7,0.65895]
[1736691453501,0.00102961,3279.8,3279.7,1.57065]
[1736691454006,0.00102961,3279.8,3279.7,2.78565]
[1736691454209,0.4751,3280.8,3279.9,0.53384]
[1736691454403,0.4511,3281.2,3280.6,3.2078]
[1736691454597,0.21348,3280.8,3280.6,3.42128]
[1736691454804,0.4511,3281.2,3280.6,3.2078]
[1736691455311,0.21345,3281.2,3281.0,0.21346]
[1736691456007,0.21347,3281.0,3280.7,0.9037]
[1736691456207,3.2078,3281.3,3280.6,3.2078]
[1736691456408,0.21348,3280.7,3280.6,3.2078]
[1736691456905,0.21348,3280.7,3280.6,3.42129]
[1736691457312,0.4511,3281.1,3280.6,3.2078]
[1736691457496,0.4511,3281.1,3280.8,0.21347]
[1736691457497,0.21346,3281.0,3280.8,0.21347]
[1736691457699,0.4511,3281.1,3280.6,3.2078]
[1736691457908,0.21347,3280.9,3280.7,0.21348]
[1736691458409,0.21347,3281.0,3280.8,0.21348]
[1736691459220,0.21347,3281.0,3280.6,3.2078]
[1736691459221,3.2078,3281.3,3280.6,3.2078]
[1736691459511,3.42125,3281.3,3281.1,0.21345]
[1736691459910,3.2078,3281.3,3281.1,0.21345]
[1736691460306,3.2078,3281.3,3280.8,0.4721]
[1736691460507,0.21347,3280.9,3280.8,0.4721]
[1736691461210,0.21347,3280.9,3280.7,0.21348]
[1736691461409,0.21348,3280.7,3280.6,3.2078]
[1736691462317,0.4612,3281.2,3280.6,3.2078]
[1736691462516,0.21348,3280.7,3280.6,3.2078]
[1736691463712,0.21351,3280.4,3280.2,0.21351]
[1736691463911,0.21352,3280.2,3280.0,0.21353]
[1736691464416,0.21352,3280.1,3279.9,3.87053]
[1736691464707,0.53378,3280.3,3279.5,3.2078]
[1736691464914,0.21355,3279.6,3279.5,3.2078]
[1736691468513,0.21355,3279.6,3279.5,3.42136]
[1736691468812,0.21355,3279.6,3279.5,3.2078]
[1736691470819,0.21356,3279.5,3279.3,0.21357]
[1736691471822,0.21356,3279.5,3279.1,3.657]
[1736691472126,0.21356,3279.5,3279.2,0.21358]
[1736691472416,0.21356,3279.6,3279.3,0.21357]
[1736691472810,0.21356,3279.5,3279.3,0.21357]
[1736691475717,0.9083,3280.0,3279.1,3.657]
[1736691476120,0.21357,3279.4,3279.2,0.21358]
[1736691477125,0.21354,3279.8,3279.2,0.21358]
[1736691477423,0.21357,3279.4,3279.2,0.21358]
[1736691477821,0.44337628,3279.4,3279.2,0.21358]
[1736691478022,0.22980628,3279.4,3279.1,3.657]
[1736691478216,0.22980628,3279.4,3279.3,0.21357]
[1736691480118,0.22980628,3279.4,3279.1,3.657]
[1736691480423,0.22980628,3279.4,3279.2,0.21358]
[1736691480424,0.44337628,3279.4,3279.2,0.21358]
[1736691480821,0.22980628,3279.4,3279.2,0.21358]
[1736691481125,0.44337628,3279.4,3279.2,0.21358]
[1736691481324,0.22980628,3279.4,3279.3,0.21357]
[1736691485528,0.22980628,3279.4,3279.1,3.657]
[1736691485825,0.22980628,3279.4,3279.3,0.21357]
[1736691490329,0.22980628,3279.4,3279.1,3.657]
[1736691490528,0.9221,3279.9,3279.1,3.657]
[1736691490831,0.21357,3279.4,3279.2,0.21358]
[1736691491030,0.21356,3279.5,3279.3,0.21357]
[1736691491231,0.21356,3279.6,3279.1,3.657]
[1736691491629,0.21356,3279.6,3279.4,0.21356]
[1736691491835,0.22421102,3279.5,3279.4,0.21356]
[1736691493429,0.9221,3279.9,3279.1,3.657]
[1736691493631,1.13564,3279.9,3279.7,0.21354]
[1736691495632,3.2078,3280.1,3279.1,3.657]
[1736691495824,0.21351,3280.3,3280.1,0.21352]
[1736691496025,0.21351,3280.3,3280.1,0.65632]
[1736691496220,0.9112,3280.4,3280.3,0.21351]
[1736691496729,3.42128,3280.7,3280.1,0.4428]
[1736691496929,0.21349,3280.6,3280.5,0.21349]
[1736691497137,3.2078,3280.7,3280.4,0.2135]
[1736691497525,3.2078,3280.7,3280.1,0.4428]
[1736691497732,0.21349,3280.6,3280.4,0.2135]
[1736691498132,0.21349,3280.6,3280.2,0.21351]
[1736691498329,0.21349,3280.6,3280.4,0.2135]
[1736691498529,0.21349,3280.6,3280.5,0.2135]
[1736691498731,3.2078,3280.7,3280.1,0.4428]
[1736691498923,3.2078,3280.7,3280.6,0.21349]
[1736691499832,0.21349,3280.6,3280.4,3.4213]
[1736691500733,0.4646,3280.9,3280.4,3.2078]
[1736691500935,0.4646,3280.9,3280.8,0.21348]
[1736691501133,0.67807,3280.9,3280.7,0.21348]
[1736691501732,0.21348,3280.8,3280.6,0.21349]
[1736691502037,0.2135,3280.5,3280.4,3.2078]
[1736691502336,0.21349,3280.7,3280.4,3.4213]
[1736691502537,0.4646,3280.9,3280.4,3.2078]
[1736691502735,0.2135,3280.5,3280.4,3.2078]
[1736691503128,0.21352,3280.1,3280.0,3.2078]
[1736691504833,0.5338,3280.2,3279.3,3.2078]
[1736691505039,3.2078,3279.9,3279.3,3.2078]
[1736691505239,0.21357,3279.5,3279.3,3.42137]
[1736691505535,0.21357,3279.4,3279.3,3.42137]
[1736691505741,0.21357,3279.5,3279.3,3.42137]
[1736691505937,0.21355,3279.7,3279.3,3.42137]
[1736691506145,0.4605,3279.8,3279.3,3.42137]
[1736691506641,0.21356,3279.6,3279.3,3.2078]
[1736691506835,0.21356,3279.6,3279.4,0.21357]
[1736691507435,0.21356,3279.6,3279.5,0.21356]
[1736691507636,0.21356,3279.6,3279.4,0.21356]
[1736691508544,0.44802297,3279.6,3279.4,0.21356]
[1736691508938,0.21357,3279.4,3279.3,3.2078]
[1736691509841,0.23446297,3279.6,3279.3,3.2078]
[1736691510039,0.21356,3279.5,3279.3,3.2078]
[1736691510241,0.21356,3279.5,3279.3,3.42137]
[1736691510845,0.21356,3279.5,3279.3,0.21357]
[1736691511145,0.44802297,3279.6,3279.3,0.21357]
[1736691512143,0.44802297,3279.6,3279.1,3.2078]
[1736691512447,0.23446297,3279.6,3279.5,0.21356]
[1736691512636,0.23446297,3279.6,3279.5,3.42136]
[1736691512942,0.23446297,3279.6,3279.5,44.22136]
[1736691514036,3.2078,3279.9,3279.5,44.0078]
[1736691514237,3.2078,3279.9,3279.8,0.21354]
[1736691515037,3.42131,3280.4,3280.2,0.21351]
[1736691515239,0.2135,3280.6,3280.3,0.2135]
[1736691515546,0.21349,3280.6,3280.4,0.2135]
[1736691516044,0.2135,3280.5,3280.3,0.21351]
[1736691516233,0.21349,3280.6,3280.3,0.2135]
[1736691516737,0.2135,3280.5,3280.3,0.2135]
[1736691517040,0.4495,3280.7,3280.3,0.21351]
[1736691517543,0.21349,3280.6,3280.4,0.2135]
[1736691518139,0.21353,3280.0,3279.9,3.2078]
[1736691518450,0.21354,3279.9,3279.7,0.21355]
[1736691518745,0.21354,3279.8,3279.6,5.44241411]
[1736691518947,0.4363,3280.2,3279.6,5.22886411]
[1736691519146,0.21355,3279.7,3279.6,5.22886411]
[1736691519648,0.21355,3279.7,3279.6,0.4723]
[1736691519838,0.4363,3280.2,3279.6,0.68585]
[1736691520040,0.21354,3279.8,3279.6,0.68585]
[1736691520547,0.21354,3279.9,3279.7,0.21354]
[1736691520847,0.22333693,3280.2,3279.7,0.21355]
[1736691521045,0.2135,3280.5,3280.3,0.21351]
[1736691521947,0.2135,3280.4,3280.2,0.21351]
[1736691522138,0.4495,3280.7,3279.9,4.4228]
[1736691522341,0.2135,3280.5,3280.3,0.21351]
[1736691523842,0.4495,3280.7,3279.9,4.4228]
[1736691524046,0.21349,3280.6,3280.4,0.2135]
[1736691524246,0.4495,3280.7,3279.9,4.4228]
[1736691524548,0.2135,3280.5,3280.4,0.2135]
[1736691524745,0.21348,3280.7,3280.5,0.21349]
[1736691524952,0.21349,3280.6,3280.5,0.21349]
[1736691525153,0.21349,3280.7,3280.5,0.21349]
[1736691525543,0.2135,3280.5,3280.1,0.21352]
[1736691525743,3.2078,3280.9,3279.9,4.4228]
[1736691525948,0.21349,3280.6,3280.4,0.2135]
[1736691526148,0.2135,3280.5,3280.0,0.21353]
[1736691526352,0.2135,3280.5,3280.3,0.21351]
[1736691526846,0.2135,3280.4,3280.2,0.21351]
[1736691527047,3.2078,3280.9,3279.9,3.2078]
[1736691527249,0.21352,3280.2,3280.0,0.21353]
[1736691528052,0.21351,3280.3,3280.1,0.21352]
[1736691528351,0.2135,3280.5,3279.9,3.2078]
[1736691528553,0.2135,3280.5,3280.3,0.2135]
[1736691529051,0.2135,3280.5,3279.9,3.2078]
[1736691529353,0.21349,3280.6,3280.4,0.2135]
[1736691529547,0.21348,3280.8,3280.3,0.2135]
[1736691529745,3.2078,3280.9,3279.9,3.2078]
[1736691529946,0.2135,3280.5,3280.3,0.21351]
[1736691530142,0.2135,3280.5,3279.9,3.2078]
[1736691530355,0.21348,3280.8,3280.6,0.21349]
[1736691530743,0.21348,3280.7,3280.5,0.21349]
[1736691531145,0.21348,3280.8,3280.6,0.21348]
[1736691531949,0.21349,3280.7,3280.5,0.21349]
[1736691532155,3.2078,3280.9,3280.4,0.9292]
[1736691532452,0.21348,3280.8,3280.6,0.21349]
[1736691533048,0.21347,3280.9,3280.7,0.21348]
[1736691533552,0.21342,3281.7,3281.5,0.21343]
[1736691533747,0.21341,3281.8,3281.6,0.21342]
[1736691533948,0.2134,3282.0,3281.3,0.21344]
[1736691534141,0.4432,3282.1,3281.4,0.4421]
[1736691534348,0.4432,3282.1,3281.8,0.21341]
[1736691534654,0.2134,3282.0,3281.8,0.21341]
[1736691535250,0.44070769,3281.9,3281.7,0.21341]
[1736691535553,0.21341,3281.9,3281.7,0.21342]
[1736691535949,0.21341,3281.9,3281.4,0.4421]
[1736691536346,0.21341,3281.9,3281.7,0.21341]
[1736691537154,0.4432,3282.1,3281.7,0.21341]
[1736691537355,0.2134,3282.0,3281.7,0.21341]
[1736691537561,0.22790434,3281.8,3281.7,0.21341]
[1736691539048,0.22790434,3281.8,3281.4,0.4421]
[1736691539251,0.22790434,3281.8,3281.7,0.21342]
[1736691539452,0.44131434,3281.8,3281.6,0.21342]
[1736691539853,0.44131434,3281.8,3281.7,0.21342]
[1736691539854,0.22790434,3281.8,3281.7,0.21342]
[1736691540155,0.22790434,3281.8,3281.4,0.4421]
[1736691540460,0.21342,3281.6,3281.4,0.21343]
[1736691540662,0.22790434,3281.8,3281.2,4.4228]
[1736691540954,0.22790434,3281.8,3281.3,0.21344]
[1736691540955,0.21343,3281.5,3281.3,0.21344]
[1736691541160,0.21343,3281.6,3281.3,0.21344]
[1736691541656,0.21343,3281.6,3281.2,3.2078]
[1736691541657,0.21343,3281.5,3281.2,3.2078]
[1736691541959,0.22790434,3281.8,3281.2,3.42124]
[1736691542161,0.21343,3281.5,3281.3,0.21344]
[1736691542564,0.21343,3281.5,3281.2,3.42125]
[1736691543363,1.16864,3281.4,3281.2,3.42125]
[1736691543564,0.9552,3281.4,3281.2,3.42125]
[1736691544064,0.9552,3281.4,3281.3,0.21344]
[1736691545257,0.21342,3281.7,3281.5,0.21343]
[1736691545467,0.22790434,3281.8,3281.7,0.21342]
[1736691545667,0.22790434,3281.8,3281.7,3.42122]
[1736691546978,1.08978,3282.3,3281.7,3.2078]
[1736691547273,1.08978,3282.3,3281.8,0.4771]
[1736691547671,0.8764,3282.3,3281.8,0.4771]
[1736691547867,3.2078,3282.5,3281.8,0.4771]
[1736691548172,3.2078,3282.5,3282.3,0.21337]
[1736691548479,3.42117,3282.5,3282.3,0.21337]
[1736691548777,3.42117,3282.5,3281.8,0.4771]
[1736691548778,3.2078,3282.5,3281.8,0.4771]
[1736691548977,0.21337,3282.4,3282.1,0.21339]
[1736691549175,3.2078,3282.5,3281.8,0.4771]
[1736691549974,3.42117,3282.5,3282.3,0.21338]
[1736691550169,0.21337,3282.4,3282.2,0.21338]
[1736691550366,0.21337,3282.4,3281.8,0.4771]
[1736691550573,0.21338,3282.3,3282.1,0.21339]
[1736691550876,0.2134,3281.9,3281.8,0.4771]
[1736691551072,0.2134,3281.9,3281.8,0.69051]
[1736691551281,0.2134,3282.0,3281.8,0.69051]
[1736691551477,0.2134,3281.9,3281.8,0.4771]
[1736691551668,0.4617,3282.1,3281.8,0.4771]
[1736691551669,0.2134,3282.0,3281.8,0.69051]
[1736691551975,0.4617,3282.1,3281.8,0.4771]
[1736691552174,0.4617,3282.1,3281.7,3.2078]
[1736691552370,0.21341,3281.8,3281.7,3.2078]
[1736691552571,0.4617,3282.1,3281.8,0.21341]
[1736691552572,0.2134,3282.0,3281.8,0.21341]
[1736691553477,0.2134,3282.0,3281.7,3.2078]
[1736691553775,0.4617,3282.1,3282.0,0.2134]
[1736691556172,0.4617,3282.1,3281.8,0.21341]
[1736691556373,0.4617,3282.1,3281.7,3.2078]
[1736691556574,0.21341,3281.9,3281.8,0.21341]
[1736691557173,0.21341,3281.9,3281.7,3.42121]
[1736691557574,0.21341,3281.9,3281.8,0.21341]
[1736691557775,0.21341,3281.9,3281.7,3.2078]
[1736691557979,0.21341,3281.9,3281.7,3.42121]
[1736691558382,0.4761,3282.1,3281.7,3.42121]
[1736691558579,0.21341,3281.8,3281.7,3.42121]
[1736691558779,0.21341,3281.8,3281.7,3.2078]
[1736691559376,0.21341,3281.8,3281.7,3.42122]
[1736691559580,0.21341,3281.8,3281.7,3.2078]
[1736691559782,0.4742,3282.3,3281.7,3.42122]
[1736691560081,0.21341,3281.9,3281.7,3.42122]
[1736691560479,0.4742,3282.3,3281.7,3.2078]
[1736691560685,0.2134,3282.1,3281.9,0.2134]
[1736691560977,0.2134,3282.0,3281.8,0.21341]
[1736691561385,0.4742,3282.3,3281.7,3.42121]
[1736691561576,0.21341,3281.8,3281.7,3.42122]
[1736691561779,0.21341,3281.8,3281.7,3.2078]
[1736691562180,0.21341,3281.8,3281.7,3.42122]
[1736691562375,0.21341,3281.9,3281.7,3.42122]
[1736691562677,0.21341,3281.9,3281.4,0.4538]
[1736691562678,0.4436,3281.8,3281.4,0.4538]
[1736691562876,0.4436,3281.8,3281.3,0.9151]
[1736691563079,0.21344,3281.4,3281.2,0.21345]
[1736691563277,0.21344,3281.4,3281.2,0.21344]
[1736691563477,0.8708,3281.7,3280.9,2.6015]
[1736691563678,0.21344,3281.4,3281.2,0.21344]
[1736691563983,0.8708,3281.7,3280.9,0.9345]
[1736691564179,0.21346,3281.0,3280.8,3.42127]
[1736691564381,0.21347,3280.9,3280.8,3.2078]
[1736691564684,0.65707,3280.9,3280.8,3.2078]
[1736691565280,0.2135,3280.4,3280.3,0.01165]
[1736691573787,0.21351,3280.3,3280.1,0.21352]
[1736691574292,3.2078,3280.5,3279.6,44.0078]
[1736691574481,0.21351,3280.3,3280.0,0.21352]
[1736691574685,0.21352,3280.2,3280.0,0.21352]
[1736691575197,0.21351,3280.3,3279.6,44.0078]
[1736691575486,0.21351,3280.3,3280.1,0.21352]
[1736691575691,0.4509,3280.8,3280.0,4.4208]
[1736691575990,0.22618157,3280.9,3280.4,3.2078]